[Event "European Rapid Championship 2021"]
[Site "Katowice"]
[Date "2021.12.18"]
[Round "5.12"]
[White "Fus, Jakub"]
[Black "Lukasiewicz, Krzysztof"]
[Result "0-1"]
[ECO "E03"]
[WhiteElo "2252"]
[BlackElo "2251"]
[Annotator "NA"]
[PlyCount "83"]
[EventDate "2021.12.18"]
[EventType "swiss"]
[EventCountry "POL"]
[SourceTitle "playchess.com"]
[Source "ChessBase"]
[SourceQuality "1"]
[TimeControl "900+10"]

1. d4 {[%emt 0:00:01]} Nf6 {[%emt 0:00:01]} 2. c4 {[%emt 0:00:02]} e6 {[%emt 0:
00:01]} 3. g3 {[%emt 0:00:01]} d5 {[%emt 0:00:01]} 4. Bg2 {[%emt 0:00:02]} dxc4
{[%emt 0:00:02]} 5. Qa4+ {[%emt 0:00:01]} Nbd7 {[%emt 0:01:15]} 6. Qxc4 {
[%emt 0:00:04]} a6 {[%emt 0:00:01]} 7. Qc2 {[%emt 0:00:11]} c5 {[%emt 0:01:09]}
8. dxc5 {[%emt 0:02:15]} Bxc5 {[%emt 0:00:23]} 9. Nf3 {[%emt 0:00:03]} O-O {
[%emt 0:03:11]} 10. O-O {[%emt 0:00:04]} Qe7 {[%emt 0:00:01]} 11. Nc3 {[%emt 0:
00:18]} Rb8 {[%emt 0:01:29]} 12. e4 {[%emt 0:00:05]} e5 {[%emt 0:00:17]} 13.
Bg5 {[%emt 0:00:57]} Qe6 {[%emt 0:01:04]} 14. Rad1 {[%emt 0:00:17]} h6 {
[%emt 0:00:10]} 15. Bc1 {[%emt 0:00:01]} b5 {[%emt 0:00:14]} 16. Nd5 {[%emt 0:
01:04]} Nxd5 {[%emt 0:03:07]} 17. exd5 {[%emt 0:00:02]} Qd6 {[%emt 0:00:06]}
18. Nd2 {[%emt 0:00:31]} f5 {[%emt 0:00:09]} 19. Nb3 {[%emt 0:00:13]} Bb6 {
[%emt 0:00:02]} 20. Qc6 {[%emt 0:00:52]} Qe7 {[%emt 0:00:01]} 21. d6 {[%emt 0:
01:18]} Qe8 {[%emt 0:00:01]} 22. Qd5+ {[%emt 0:01:25]} Kh8 {[%emt 0:00:02]} 23.
Be3 {[%emt 0:01:35]} f4 {[%emt 0:03:21]} 24. Bxb6 {[%emt 0:00:48]} Nxb6 {
[%emt 0:00:01]} 25. Qc5 {[%emt 0:01:19]} Bg4 {[%emt 0:00:59]} 26. f3 {[%emt 0:
01:09]} Nd7 {[%emt 0:00:07]} 27. Qc6 {[%emt 0:01:17]} Be6 {[%emt 0:00:07]} 28.
Qxa6 {[%emt 0:00:21]} Qg6 {[%emt 0:00:49]} 29. Nd2 {[%emt 0:01:26]} fxg3 {
[%emt 0:00:17]} 30. hxg3 {[%emt 0:00:01]} Qxg3 {[%emt 0:00:06]} 31. Ne4 {
[%emt 0:00:01]} Qf4 {[%emt 0:00:01]} 32. a3 {[%emt 0:00:22]} Rfc8 {[%emt 0:00:
08]} 33. Qa5 {[%emt 0:00:15]} b4 {[%emt 0:01:26]} 34. axb4 {[%emt 0:00:19]} Bc4
{[%emt 0:00:01]} 35. Qa7 {[%emt 0:00:18]} Bxf1 {[%emt 0:00:12]} 36. Rxf1 {
[%emt 0:00:01]} Nf6 {[%emt 0:00:01]} 37. Re1 {[%emt 0:01:34]} Nxe4 {[%emt 0:00:
26]} 38. fxe4 {[%emt 0:00:14]} Rd8 {[%emt 0:00:19]} 39. Rd1 {[%emt 0:00:25]}
Rxb4 {[%emt 0:00:11]} 40. d7 {[%emt 0:00:11]} Rxb2 {[%emt 0:00:08]} 41. Rf1 {
[%emt 0:00:25]} Qg3 {[%emt 0:00:10]} 42. Rf2 {[%emt 0:00:03]} 0-1

[Event "European Rapid Championship 2021"]
[Site "Katowice"]
[Date "2021.12.18"]
[Round "5.13"]
[White "Pultinevicius, Paulius"]
[Black "Godzwon, Iwo"]
[Result "0-1"]
[ECO "E16"]
[WhiteElo "2536"]
[BlackElo "2352"]
[Annotator "ChessBase"]
[PlyCount "74"]
[EventDate "2021.12.18"]
[EventType "swiss"]
[EventCountry "POL"]
[SourceTitle "playchess.com"]
[Source "ChessBase"]
[SourceQuality "1"]
[TimeControl "900+10"]

1. d4 {[%emt 0:00:01]} Nf6 {[%emt 0:00:01]} 2. c4 {[%emt 0:00:01]} e6 {[%emt 0:
00:03]} 3. Nf3 {[%emt 0:00:01]} Bb4+ {[%emt 0:00:22]} 4. Bd2 {[%emt 0:00:01]}
Qe7 {[%emt 0:00:01]} 5. Nc3 {[%emt 0:00:12]} Nc6 {[%emt 0:00:48]} 6. g3 {
[%emt 0:00:28]} Bxc3 {[%emt 0:00:02]} 7. Bxc3 {[%emt 0:00:01]} Ne4 {[%emt 0:00:
02]} 8. Qc2 {[%emt 0:00:12]} Nxc3 {[%emt 0:00:01]} 9. Qxc3 {[%emt 0:00:01]} Qb4
{[%emt 0:00:02]} 10. Rc1 {[%emt 0:00:37]} Qxc3+ {[%emt 0:00:53]} 11. Rxc3 {
[%emt 0:00:01]} d6 {[%emt 0:00:07]} 12. Bg2 {[%emt 0:00:33]} a5 {[%emt 0:01:13]
} 13. O-O {[%emt 0:01:02]} Bd7 {[%emt 0:00:46]} 14. e4 {[%emt 0:01:48]} e5 {
[%emt 0:00:19]} 15. d5 {[%emt 0:03:07]} Nb8 {[%emt 0:00:14]} 16. c5 {[%emt 0:
00:14]} Na6 {[%emt 0:00:07]} 17. cxd6 {[%emt 0:00:29]} cxd6 {[%emt 0:00:01]}
18. Rfc1 {[%emt 0:00:09]} Ke7 {[%emt 0:00:02]} 19. Nd2 {[%emt 0:00:19]} b5 {
[%emt 0:01:45]} 20. a3 {[%emt 0:03:46]} b4 {[%emt 0:00:36]} 21. R3c2 {[%emt 0:
01:44]} Nc5 {[%emt 0:00:39]} 22. Bf1 {[%emt 0:00:49]} Rhc8 {[%emt 0:01:09]} 23.
axb4 {[%emt 0:00:23]} axb4 {[%emt 0:00:02]} 24. b3 {[%emt 0:00:01]} Ra3 {
[%emt 0:00:33]} 25. Bc4 {[%emt 0:01:52]} Rca8 {[%emt 0:00:01]} 26. f3 {[%emt 0:
00:05]} f5 {[%emt 0:00:53]} 27. Kf2 {[%emt 0:00:01]} fxe4 {[%emt 0:01:05]} 28.
fxe4 {[%emt 0:00:02]} Ra2 {[%emt 0:00:29]} 29. Rxa2 {[%emt 0:00:23]} Rxa2 {
[%emt 0:00:01]} 30. Ke3 {[%emt 0:00:00]} Be8 {[%emt 0:00:18]} 31. Be2 {[%emt 0:
00:11]} Rxd2 {[%emt 0:00:05]} 32. Kxd2 {[%emt 0:00:17]} Nxb3+ {[%emt 0:00:01]}
33. Kc2 {[%emt 0:00:02]} Nxc1 {[%emt 0:00:01]} 34. Kxc1 {[%emt 0:00:01]} Kd8 {
[%emt 0:00:21]} 35. Kb2 {[%emt 0:01:14]} Ba4 {[%emt 0:00:03]} 36. Bc4 {[%emt 0:
00:14]} Kc7 {[%emt 0:00:07]} 37. Bb3 {[%emt 0:00:01]} Bb5 {[%emt 0:00:01]} 0-1

[Event "European Rapid Championship 2021"]
[Site "Katowice"]
[Date "2021.12.18"]
[Round "5.13"]
[White "Zakrzewski, Marek"]
[Black "Krzywda, Andrzej"]
[Result "1/2-1/2"]
[ECO "B31"]
[WhiteElo "2239"]
[BlackElo "2123"]
[Annotator "NA"]
[PlyCount "70"]
[EventDate "2021.12.18"]
[EventType "swiss"]
[EventCountry "POL"]
[SourceTitle "playchess.com"]
[Source "ChessBase"]
[SourceQuality "1"]
[TimeControl "900+10"]

1. e4 {[%emt 0:00:05]} c5 {[%emt 0:00:01]} 2. Nf3 {[%emt 0:00:02]} Nc6 {
[%emt 0:00:02]} 3. Bb5 {[%emt 0:00:02]} g6 {[%emt 0:00:04]} 4. O-O {[%emt 0:00:
03]} Bg7 {[%emt 0:00:02]} 5. c3 {[%emt 0:00:02]} Nf6 {[%emt 0:00:01]} 6. Re1 {
[%emt 0:00:02]} O-O {[%emt 0:00:03]} 7. d4 {[%emt 0:00:02]} d5 {[%emt 0:00:01]}
8. e5 {[%emt 0:00:02]} Ne4 {[%emt 0:00:02]} 9. Bxc6 {[%emt 0:00:04]} bxc6 {
[%emt 0:00:01]} 10. Be3 {[%emt 0:00:02]} cxd4 {[%emt 0:00:08]} 11. cxd4 {
[%emt 0:00:03]} Qb6 {[%emt 0:00:05]} 12. Qc1 {[%emt 0:00:02]} a5 {[%emt 0:00:
19]} 13. Nc3 {[%emt 0:00:22]} Nxc3 {[%emt 0:00:11]} 14. Qxc3 {[%emt 0:00:26]}
Bf5 {[%emt 0:01:08]} 15. Rec1 {[%emt 0:00:29]} Rfb8 {[%emt 0:01:03]} 16. b3 {
[%emt 0:00:28]} a4 {[%emt 0:01:14]} 17. Nd2 {[%emt 0:01:30]} axb3 {[%emt 0:04:
38]} 18. axb3 {[%emt 0:00:49]} f6 {[%emt 0:01:05]} 19. f4 {[%emt 0:02:52]} Rxa1
{[%emt 0:00:31]} 20. Rxa1 {[%emt 0:00:10]} Qb5 {[%emt 0:00:54]} 21. h3 {
[%emt 0:03:40]} Qe2 {[%emt 0:01:10]} 22. Bf2 {[%emt 0:00:31]} fxe5 {[%emt 0:02:
18]} 23. fxe5 {[%emt 0:02:38]} Bh6 {[%emt 0:02:18]} 24. Nf3 {[%emt 0:00:05]}
Be4 {[%emt 0:00:54]} 25. Re1 {[%emt 0:03:59]} Qc2 {[%emt 0:00:02]} 26. Qxc2 {
[%emt 0:00:39]} Bxc2 {[%emt 0:00:02]} 27. Be3 {[%emt 0:00:04]} Bxe3+ {[%emt 0:
00:24]} 28. Rxe3 {[%emt 0:00:01]} Bxb3 {[%emt 0:00:13]} 29. Rc3 {[%emt 0:00:10]
} Bc4 {[%emt 0:00:12]} 30. Ra3 {[%emt 0:00:15]} Rb1+ {[%emt 0:00:15]} 31. Kh2 {
[%emt 0:00:06]} Rb2 {[%emt 0:00:23]} 32. Kg1 {[%emt 0:00:24]} Rb1+ {[%emt 0:00:
01]} 33. Kh2 {[%emt 0:00:01]} Rb2 {[%emt 0:00:02]} 34. Kg1 {[%emt 0:00:01]}
Rb1+ {[%emt 0:00:16]} 35. Kh2 {[%emt 0:00:01]} Rb2 {[%emt 0:00:25]} 1/2-1/2

[Event "European Rapid Championship 2021"]
[Site "Katowice"]
[Date "2021.12.18"]
[Round "5.14"]
[White "Durarbayli, Vasif"]
[Black "Janaszak, Dawid"]
[Result "1/2-1/2"]
[ECO "B20"]
[WhiteElo "2532"]
[BlackElo "2328"]
[Annotator "ChessBase"]
[PlyCount "148"]
[EventDate "2021.12.18"]
[EventType "swiss"]
[EventCountry "POL"]
[SourceTitle "playchess.com"]
[Source "ChessBase"]
[SourceQuality "1"]
[TimeControl "900+10"]

1. e4 {[%emt 0:00:02]} c5 {[%emt 0:00:01]} 2. b3 {[%emt 0:00:01]} g6 {[%emt 0:
00:14]} 3. Bb2 {[%emt 0:00:03]} Nf6 {[%emt 0:00:02]} 4. e5 {[%emt 0:00:01]} Nd5
{[%emt 0:00:05]} 5. Nc3 {[%emt 0:00:01]} Nxc3 {[%emt 0:01:10]} 6. dxc3 {
[%emt 0:00:02]} Bg7 {[%emt 0:00:18]} 7. f4 {[%emt 0:00:01]} O-O {[%emt 0:00:27]
} 8. Qd2 {[%emt 0:00:08]} d5 {[%emt 0:00:27]} 9. exd6 {[%emt 0:00:02]} exd6 {
[%emt 0:00:49]} 10. O-O-O {[%emt 0:00:04]} Qa5 {[%emt 0:01:23]} 11. a3 {
[%emt 0:00:01]} Nc6 {[%emt 0:00:19]} 12. Nf3 {[%emt 0:00:03]} d5 {[%emt 0:00:
34]} 13. Qxd5 {[%emt 0:01:07]} Rd8 {[%emt 0:01:50]} 14. Qe4 {[%emt 0:00:45]}
Rxd1+ {[%emt 0:00:08]} 15. Kxd1 {[%emt 0:00:01]} Bf5 {[%emt 0:00:06]} 16. Qe3 {
[%emt 0:00:09]} Rd8+ {[%emt 0:00:42]} 17. Kc1 {[%emt 0:00:02]} Kf8 {[%emt 0:02:
29]} 18. Be2 {[%emt 0:03:01]} Re8 {[%emt 0:00:23]} 19. Qd2 {[%emt 0:00:01]} Rd8
{[%emt 0:00:11]} 20. Qe1 {[%emt 0:00:29]} b5 {[%emt 0:00:32]} 21. Nh4 {[%emt 0:
04:04]} Be6 {[%emt 0:01:33]} 22. Bf3 {[%emt 0:02:40]} Ne7 {[%emt 0:00:21]} 23.
Qe3 {[%emt 0:01:22]} c4 {[%emt 0:00:45]} 24. b4 {[%emt 0:00:15]} Qc7 {[%emt 0:
00:01]} 25. g3 {[%emt 0:00:59]} Nd5 {[%emt 0:00:18]} 26. Bxd5 {[%emt 0:00:05]}
Rxd5 {[%emt 0:00:26]} 27. Nf3 {[%emt 0:00:04]} Qb7 {[%emt 0:01:22]} 28. Re1 {
[%emt 0:00:10]} Bf6 {[%emt 0:00:20]} 29. Nd4 {[%emt 0:01:04]} Bg4 {[%emt 0:00:
50]} 30. Qe8+ {[%emt 0:00:40]} Kg7 {[%emt 0:00:01]} 31. Kb1 {[%emt 0:00:01]} a6
{[%emt 0:00:48]} 32. Qe3 {[%emt 0:00:21]} Rd7 {[%emt 0:00:13]} 33. Qf2 {
[%emt 0:00:20]} Qd5 {[%emt 0:00:16]} 34. Qf1 {[%emt 0:00:34]} Re7 {[%emt 0:00:
08]} 35. Rxe7 {[%emt 0:00:21]} Bxe7 {[%emt 0:00:01]} 36. Bc1 {[%emt 0:00:01]}
Qe4 {[%emt 0:00:18]} 37. Qf2 {[%emt 0:00:01]} Bf6 {[%emt 0:00:05]} 38. Be3 {
[%emt 0:00:02]} h5 {[%emt 0:00:15]} 39. Kb2 {[%emt 0:00:02]} Kg8 {[%emt 0:00:
06]} 40. Qd2 {[%emt 0:00:08]} Kg7 {[%emt 0:00:10]} 41. Bf2 {[%emt 0:00:22]} Kf8
{[%emt 0:00:12]} 42. h4 {[%emt 0:00:26]} Kg8 {[%emt 0:00:09]} 43. Be3 {[%emt 0:
00:30]} Kf8 {[%emt 0:00:09]} 44. Qf2 {[%emt 0:00:01]} Kg8 {[%emt 0:00:07]} 45.
Kc1 {[%emt 0:00:09]} Qh1+ {[%emt 0:00:04]} 46. Kb2 {[%emt 0:00:01]} Qe4 {
[%emt 0:00:02]} 47. Qg1 {[%emt 0:00:08]} Kf8 {[%emt 0:00:09]} 48. Qe1 {[%emt 0:
00:16]} Kg7 {[%emt 0:00:07]} 49. Kc1 {[%emt 0:00:10]} Kg8 {[%emt 0:00:04]} 50.
Kb1 {[%emt 0:00:05]} Kg7 {[%emt 0:00:02]} 51. Kb2 {[%emt 0:00:10]} Kg8 {
[%emt 0:00:01]} 52. Qc1 {[%emt 0:00:28]} Kh7 {[%emt 0:00:06]} 53. Bg1 {[%emt 0:
00:01]} Kg8 {[%emt 0:00:12]} 54. Qf1 {[%emt 0:00:03]} Kg7 {[%emt 0:00:16]} 55.
Bf2 {[%emt 0:00:12]} Kg8 {[%emt 0:00:03]} 56. a4 {[%emt 0:00:17]} Bxd4 {
[%emt 0:00:20]} 57. Bxd4 {[%emt 0:00:04]} Bf5 {[%emt 0:00:03]} 58. Qd1 {
[%emt 0:00:06]} bxa4 {[%emt 0:00:16]} 59. Bf6 {[%emt 0:00:05]} Kh7 {[%emt 0:00:
05]} 60. Qd2 {[%emt 0:00:20]} a3+ {[%emt 0:00:26]} 61. Kxa3 {[%emt 0:00:02]}
Qxc2 {[%emt 0:00:02]} 62. Qxc2 {[%emt 0:00:12]} Bxc2 {[%emt 0:00:02]} 63. Kb2 {
[%emt 0:00:01]} Bf5 {[%emt 0:00:03]} 64. Kc1 {[%emt 0:00:01]} Kg8 {[%emt 0:00:
21]} 65. Kd2 {[%emt 0:00:01]} Bd7 {[%emt 0:00:25]} 66. Ke3 {[%emt 0:00:00]} Kf8
{[%emt 0:00:13]} 67. Kd4 {[%emt 0:00:11]} Bb5 {[%emt 0:00:01]} 68. Ke5 {
[%emt 0:00:00]} Kg8 {[%emt 0:00:09]} 69. f5 {[%emt 0:00:42]} gxf5 {[%emt 0:00:
03]} 70. Kxf5 {[%emt 0:00:03]} Bd7+ {[%emt 0:00:01]} 71. Kg5 {[%emt 0:00:36]}
Bg4 {[%emt 0:00:02]} 72. Be5 {[%emt 0:00:01]} Kf8 {[%emt 0:00:07]} 73. Kf6 {
[%emt 0:00:01]} Ke8 {[%emt 0:00:06]} 74. Bd6 {[%emt 0:00:04]} Be6 {[%emt 0:00:
06]} 1/2-1/2

[Event "European Rapid Championship 2021"]
[Site "Katowice"]
[Date "2021.12.18"]
[Round "5.14"]
[White "Molenda, Marcin"]
[Black "Czernek, Tymon"]
[Result "0-1"]
[ECO "E92"]
[WhiteElo "2365"]
[BlackElo "2197"]
[Annotator "ChessBase"]
[PlyCount "154"]
[EventDate "2021.12.18"]
[EventType "swiss"]
[EventCountry "POL"]
[SourceTitle "playchess.com"]
[Source "ChessBase"]
[SourceQuality "1"]
[TimeControl "900+10"]

1. Nf3 {[%emt 0:00:40]} Nf6 {[%emt 0:00:01]} 2. d4 {[%emt 0:00:09]} g6 {
[%emt 0:00:03]} 3. c4 {[%emt 0:00:05]} Bg7 {[%emt 0:00:01]} 4. Nc3 {[%emt 0:00:
03]} O-O {[%emt 0:00:02]} 5. e4 {[%emt 0:00:03]} d6 {[%emt 0:00:01]} 6. Be2 {
[%emt 0:00:04]} e5 {[%emt 0:00:01]} 7. Be3 {[%emt 0:00:27]} Nc6 {[%emt 0:00:09]
} 8. d5 {[%emt 0:00:36]} Ne7 {[%emt 0:00:01]} 9. Nd2 {[%emt 0:00:38]} Ne8 {
[%emt 0:00:09]} 10. Qc2 {[%emt 0:00:05]} f5 {[%emt 0:00:05]} 11. f3 {[%emt 0:
00:07]} Nf6 {[%emt 0:00:24]} 12. O-O-O {[%emt 0:00:58]} fxe4 {[%emt 0:00:15]}
13. fxe4 {[%emt 0:00:51]} Ng4 {[%emt 0:00:40]} 14. Bxg4 {[%emt 0:00:15]} Bxg4 {
[%emt 0:00:05]} 15. Rde1 {[%emt 0:00:27]} c6 {[%emt 0:00:27]} 16. h3 {[%emt 0:
00:08]} cxd5 {[%emt 0:00:46]} 17. hxg4 {[%emt 0:01:27]} d4 {[%emt 0:00:02]} 18.
Bg5 {[%emt 0:00:02]} dxc3 {[%emt 0:00:18]} 19. Qxc3 {[%emt 0:00:02]} Rf7 {
[%emt 0:01:19]} 20. Qh3 {[%emt 0:00:34]} Bf8 {[%emt 0:00:15]} 21. Ref1 {
[%emt 0:02:23]} Qe8 {[%emt 0:00:02]} 22. Rf6 {[%emt 0:00:11]} Rd8 {[%emt 0:01:
27]} 23. Kb1 {[%emt 0:00:12]} Rd7 {[%emt 0:00:23]} 24. Nf1 {[%emt 0:01:57]} Kh8
{[%emt 0:04:02]} 25. Ne3 {[%emt 0:02:05]} Ng8 {[%emt 0:00:02]} 26. Nd5 {
[%emt 0:03:05]} Nxf6 {[%emt 0:00:08]} 27. Bxf6+ {[%emt 0:00:03]} Kg8 {[%emt 0:
00:15]} 28. g5 {[%emt 0:00:02]} b6 {[%emt 0:01:37]} 29. b3 {[%emt 0:00:09]} Rb7
{[%emt 0:00:06]} 30. a4 {[%emt 0:00:16]} a6 {[%emt 0:00:12]} 31. Qe3 {[%emt 0:
00:59]} b5 {[%emt 0:00:16]} 32. cxb5 {[%emt 0:00:02]} axb5 {[%emt 0:00:35]} 33.
a5 {[%emt 0:00:02]} b4 {[%emt 0:00:45]} 34. a6 {[%emt 0:00:16]} Ra7 {[%emt 0:
00:03]} 35. Qb6 {[%emt 0:00:36]} Qa8 {[%emt 0:00:15]} 36. Qd8 {[%emt 0:00:43]}
Rxa6 {[%emt 0:00:41]} 37. Qxa8 {[%emt 0:00:07]} Rxa8 38. Rc1 {[%emt 0:00:09]}
Rfa7 {[%emt 0:00:45]} 39. Rc6 {[%emt 0:00:02]} Ra1+ 40. Kc2 R1a2+ {[%emt 0:01:
08]} 41. Kb1 {[%emt 0:00:17]} Rxg2 {[%emt 0:00:04]} 42. Nxb4 {[%emt 0:00:01]}
Rb8 {[%emt 0:00:17]} 43. Rc4 {[%emt 0:00:04]} d5 {[%emt 0:00:14]} 44. Nxd5 {
[%emt 0:00:06]} Rxb3+ {[%emt 0:00:02]} 45. Ka1 {[%emt 0:00:12]} Rd3 {[%emt 0:
01:36]} 46. Rc1 {[%emt 0:00:07]} Bd6 {[%emt 0:00:11]} 47. Rf1 {[%emt 0:00:17]}
Rgd2 {[%emt 0:00:21]} 48. Kb1 {[%emt 0:00:20]} Rd1+ {[%emt 0:00:02]} 49. Rxd1 {
[%emt 0:00:01]} Rxd1+ {[%emt 0:00:01]} 50. Kc2 {[%emt 0:00:01]} Rd4 {[%emt 0:
00:18]} 51. Bd8 {[%emt 0:00:05]} Kg7 {[%emt 0:00:25]} 52. Nf6 {[%emt 0:00:05]}
Bf8 {[%emt 0:00:32]} 53. Bc7 {[%emt 0:00:13]} Rc4+ {[%emt 0:00:32]} 54. Kd3 {
[%emt 0:00:01]} Rxc7 {[%emt 0:00:01]} 55. Ne8+ {[%emt 0:00:01]} Kf7 {[%emt 0:
00:01]} 56. Nxc7 {[%emt 0:00:01]} Be7 {[%emt 0:00:01]} 57. Ke3 {[%emt 0:00:16]}
Bxg5+ {[%emt 0:00:03]} 58. Kf3 {[%emt 0:00:01]} h5 {[%emt 0:00:07]} 59. Nb5 {
[%emt 0:00:01]} Be7 {[%emt 0:00:05]} 60. Nc3 {[%emt 0:00:06]} g5 {[%emt 0:00:
29]} 61. Nd5 {[%emt 0:00:03]} Bd8 {[%emt 0:00:07]} 62. Ne3 {[%emt 0:00:02]} Kg6
{[%emt 0:00:35]} 63. Nc4 {[%emt 0:00:49]} Bf6 {[%emt 0:00:04]} 64. Nd6 {
[%emt 0:00:01]} Be7 {[%emt 0:00:33]} 65. Nc4 {[%emt 0:00:01]} Kf6 {[%emt 0:00:
02]} 66. Kg3 {[%emt 0:00:07]} Bb4 {[%emt 0:00:11]} 67. Ne3 {[%emt 0:00:03]}
Be1+ {[%emt 0:00:06]} 68. Kg2 {[%emt 0:00:04]} g4 {[%emt 0:00:09]} 69. Nf5 {
[%emt 0:00:19]} Kg5 {[%emt 0:00:06]} 70. Ng7 {[%emt 0:00:01]} h4 {[%emt 0:00:
20]} 71. Ne6+ {[%emt 0:00:01]} Kf6 {[%emt 0:00:01]} 72. Nc5 {[%emt 0:00:02]}
h3+ {[%emt 0:00:08]} 73. Kh2 {[%emt 0:00:01]} Kg5 {[%emt 0:00:03]} 74. Ne6+ {
[%emt 0:00:17]} Kh4 {[%emt 0:00:03]} 75. Ng7 {[%emt 0:00:04]} g3+ {[%emt 0:00:
04]} 76. Kh1 {[%emt 0:00:02]} Kg4 {[%emt 0:00:08]} 77. Nf5 {[%emt 0:00:02]} Kf3
{[%emt 0:00:11]} 0-1

[Event "European Rapid Championship 2021"]
[Site "Katowice"]
[Date "2021.12.18"]
[Round "5.15"]
[White "Tazbir, Marcin"]
[Black "Danielyan, Vahe"]
[Result "1-0"]
[ECO "A15"]
[WhiteElo "2514"]
[BlackElo "2198"]
[Annotator "ChessBase"]
[PlyCount "77"]
[EventDate "2021.12.18"]
[EventType "swiss"]
[EventCountry "POL"]
[SourceTitle "playchess.com"]
[Source "ChessBase"]
[SourceQuality "1"]
[TimeControl "900+10"]

1. c4 {[%emt 0:00:01]} Nf6 {[%emt 0:00:13]} 2. g3 {[%emt 0:00:01]} g6 {[%emt 0:
00:05]} 3. Bg2 {[%emt 0:00:01]} Bg7 {[%emt 0:00:01]} 4. Nc3 c5 5. e3 {[%emt 0:
00:03]} h5 {[%emt 0:00:10]} 6. h3 {[%emt 0:00:06]} Nc6 {[%emt 0:00:13]} 7. Nge2
{[%emt 0:00:01]} d5 {[%emt 0:00:29]} 8. cxd5 {[%emt 0:01:34]} Nb4 {[%emt 0:00:
01]} 9. d4 {[%emt 0:00:43]} Nfxd5 {[%emt 0:01:11]} 10. Nxd5 {[%emt 0:01:18]}
Nxd5 {[%emt 0:00:09]} 11. dxc5 {[%emt 0:00:04]} Qa5+ {[%emt 0:02:42]} 12. Qd2 {
[%emt 0:00:05]} Nb4 {[%emt 0:00:49]} 13. O-O {[%emt 0:00:04]} Qxc5 {[%emt 0:00:
24]} 14. a3 {[%emt 0:00:00]} Nc6 {[%emt 0:00:34]} 15. b4 {[%emt 0:00:04]} Qd6 {
[%emt 0:00:41]} 16. Qxd6 {[%emt 0:00:05]} exd6 {[%emt 0:00:01]} 17. Ra2 {
[%emt 0:00:28]} Be6 {[%emt 0:00:24]} 18. Rd2 {[%emt 0:00:03]} Rd8 {[%emt 0:01:
26]} 19. Bb2 {[%emt 0:00:01]} Ne5 {[%emt 0:00:13]} 20. f4 {[%emt 0:00:57]} Nc4
{[%emt 0:00:01]} 21. Bxg7 {[%emt 0:00:01]} Nxd2 {[%emt 0:00:01]} 22. Bxh8 {
[%emt 0:00:03]} Nxf1 {[%emt 0:00:02]} 23. Kxf1 {[%emt 0:00:02]} Rc8 {[%emt 0:
00:05]} 24. Nc3 {[%emt 0:00:02]} Ke7 {[%emt 0:00:48]} 25. Bd4 {[%emt 0:00:02]}
b6 {[%emt 0:00:04]} 26. Ke1 {[%emt 0:00:05]} f5 {[%emt 0:00:07]} 27. h4 {
[%emt 0:00:13]} Kd7 {[%emt 0:00:25]} 28. Kd2 {[%emt 0:00:03]} Bb3 {[%emt 0:00:
12]} 29. e4 {[%emt 0:00:34]} Be6 {[%emt 0:00:23]} 30. Nb5 {[%emt 0:01:15]} a5 {
[%emt 0:02:30]} 31. Bc3 {[%emt 0:00:13]} axb4 {[%emt 0:00:18]} 32. Bxb4 {
[%emt 0:01:58]} Rc4 {[%emt 0:01:18]} 33. Bf1 {[%emt 0:00:10]} Rc6 {[%emt 0:01:
03]} 34. Nd4 Rc8 35. Bb5+ {[%emt 0:00:04]} Ke7 {[%emt 0:00:02]} 36. e5 {
[%emt 0:00:02]} Kf7 {[%emt 0:00:21]} 37. exd6 {[%emt 0:00:10]} Bd5 {[%emt 0:00:
04]} 38. d7 {[%emt 0:00:14]} Ra8 {[%emt 0:00:03]} 39. Bc6 {[%emt 0:00:08]} 1-0

[Event "European Rapid Championship 2021"]
[Site "Katowice"]
[Date "2021.12.18"]
[Round "5.15"]
[White "Kulon, Klaudia"]
[Black "Grzesik, Gracjan"]
[Result "0-1"]
[ECO "A45"]
[WhiteElo "2328"]
[BlackElo "1992"]
[Annotator "NA"]
[PlyCount "92"]
[EventDate "2021.12.18"]
[EventType "swiss"]
[EventCountry "POL"]
[SourceTitle "playchess.com"]
[Source "ChessBase"]
[SourceQuality "1"]
[TimeControl "900+10"]

1. d4 {[%emt 0:00:03]} Nf6 {[%emt 0:00:04]} 2. Bg5 {[%emt 0:00:02]} d5 {
[%emt 0:00:05]} 3. Bxf6 {[%emt 0:00:02]} exf6 {[%emt 0:00:02]} 4. e3 {[%emt 0:
00:03]} Bd6 {[%emt 0:00:13]} 5. Nd2 {[%emt 0:00:07]} c6 {[%emt 0:00:12]} 6. Bd3
{[%emt 0:00:03]} f5 {[%emt 0:00:59]} 7. c3 {[%emt 0:00:53]} O-O {[%emt 0:00:15]
} 8. Qf3 {[%emt 0:00:18]} Qf6 {[%emt 0:00:46]} 9. h4 {[%emt 0:00:28]} Be6 {
[%emt 0:00:37]} 10. Ne2 {[%emt 0:00:08]} Nd7 {[%emt 0:01:25]} 11. O-O-O {
[%emt 0:00:29]} a5 {[%emt 0:00:40]} 12. Kb1 {[%emt 0:00:07]} g6 {[%emt 0:03:50]
} 13. h5 {[%emt 0:00:25]} Qg5 {[%emt 0:00:11]} 14. g3 {[%emt 0:01:36]} Nf6 {
[%emt 0:00:39]} 15. Nf4 {[%emt 0:00:19]} Ne4 {[%emt 0:01:03]} 16. hxg6 {
[%emt 0:00:50]} hxg6 {[%emt 0:00:05]} 17. Nf1 {[%emt 0:01:17]} Kg7 {[%emt 0:00:
35]} 18. Qg2 {[%emt 0:00:06]} Rh8 {[%emt 0:02:10]} 19. f3 {[%emt 0:00:31]} Rxh1
{[%emt 0:00:27]} 20. fxe4 {[%emt 0:01:06]} Rah8 {[%emt 0:01:12]} 21. e5 {
[%emt 0:00:02]} Be7 {[%emt 0:00:08]} 22. Kc2 {[%emt 0:00:12]} Qh6 {[%emt 0:00:
26]} 23. g4 {[%emt 0:00:24]} Bg5 {[%emt 0:01:55]} 24. gxf5 {[%emt 0:01:51]}
Bxf5 {[%emt 0:00:47]} 25. Bxf5 {[%emt 0:00:02]} Bxf4 {[%emt 0:00:01]} 26. Bd3 {
[%emt 0:02:50]} Bxe3 {[%emt 0:00:17]} 27. e6 {[%emt 0:01:13]} Qg5 {[%emt 0:00:
22]} 28. Qf3 {[%emt 0:01:06]} Qf4 {[%emt 0:00:11]} 29. Be2 {[%emt 0:00:56]}
fxe6 {[%emt 0:00:12]} 30. Nxe3 {[%emt 0:00:10]} Qxf3 {[%emt 0:00:10]} 31. Bxf3
{[%emt 0:00:02]} R1h3 {[%emt 0:00:02]} 32. Rf1 {[%emt 0:01:14]} Rf8 {[%emt 0:
00:04]} 33. Ng4 {[%emt 0:00:02]} Rhxf3 {[%emt 0:00:05]} 34. Re1 {[%emt 0:00:00]
} Rg3 {[%emt 0:00:12]} 35. Ne5 {[%emt 0:00:09]} Rg2+ {[%emt 0:00:07]} 36. Kb3 {
[%emt 0:00:01]} Rff2 {[%emt 0:00:11]} 37. Rb1 {[%emt 0:00:00]} g5 {[%emt 0:00:
08]} 38. a4 {[%emt 0:00:09]} g4 {[%emt 0:00:21]} 39. Nd3 {[%emt 0:00:01]} Rd2 {
[%emt 0:00:10]} 40. Nf4 {[%emt 0:00:06]} Rgf2 {[%emt 0:00:07]} 41. Nxe6+ {
[%emt 0:00:02]} Kf6 {[%emt 0:00:03]} 42. Nc5 {[%emt 0:00:03]} g3 {[%emt 0:00:
07]} 43. c4 {[%emt 0:00:16]} Rxb2+ {[%emt 0:00:19]} 44. Rxb2 {[%emt 0:00:03]}
Rxb2+ {[%emt 0:00:02]} 45. Kxb2 {[%emt 0:00:01]} g2 {[%emt 0:00:01]} 46. Nd7+ {
[%emt 0:00:03]} Ke7 {[%emt 0:00:02]} 0-1